bitfinex-derivatives/quotes_BTCF0:USTF0_20251011
["timestamp","ask_amount","ask_price","bid_price","bid_amount"]
[1760142160199,0.13420431,112010.0,112000.0,0.90426637]
[1760142160391,0.86146905,112060.0,112030.0,0.0891222]
[1760142160589,0.50066905,112060.0,112040.0,0.3608]
[1760142160893,0.13362371,112050.0,112040.0,0.47237882]
[1760142161089,0.63429276,112060.0,112040.0,0.38326452]
[1760142161282,0.22333796,112050.0,112040.0,0.02246452]
[1760142161489,0.49503146,112050.0,112040.0,0.02246452]
[1760142161689,0.72400131,112060.0,112040.0,0.02247762]
[1760142161991,0.08227,112040.0,112020.0,0.3608]
[1760142162188,0.08227,112040.0,112020.0,0.13550938]
[1760142162382,0.13457044,112040.0,112030.0,0.4499229]
[1760142162582,0.13457044,112040.0,112030.0,0.47240076]
[1760142162788,0.13457044,112040.0,112030.0,0.49630338]
[1760142163185,0.13457044,112040.0,112030.0,0.89630338]
[1760142163490,0.13457044,112040.0,112030.0,0.89631399]
[1760142163684,0.13457044,112040.0,112030.0,0.49631399]
[1760142163991,0.1346596,112040.0,112030.0,0.87240076]
[1760142164191,0.001,112060.0,112050.0,0.0891071]
[1760142164387,0.110466,112090.0,112070.0,0.0890868]
[1760142164587,0.5321379,112100.0,112070.0,0.3608]
[1760142164885,0.08227,112080.0,112060.0,0.3608]
[1760142165082,0.08227,112080.0,112050.0,0.3608]
[1760142165083,0.08227,112060.0,112050.0,0.3608]
[1760142165285,0.08227,112060.0,112040.0,0.4499141]
[1760142165493,0.13427653,112060.0,112050.0,0.4499063]
[1760142165688,0.13427653,112060.0,112050.0,0.87238892]
[1760142165897,0.13436016,112060.0,112050.0,0.87238892]
[1760142166192,0.13436016,112060.0,112050.0,0.41515278]
[1760142166395,0.61663016,112060.0,112050.0,0.04638357]
[1760142166696,0.61763016,112060.0,112050.0,0.04638357]
[1760142167084,1.06752926,112060.0,112050.0,0.02248262]
[1760142167688,0.30672926,112060.0,112050.0,0.02248262]
[1760142167990,0.21763016,112060.0,112050.0,0.02248262]
[1760142168190,0.21763016,112060.0,112050.0,0.04638357]
[1760142168387,0.21763016,112060.0,112050.0,0.49629147]
[1760142168582,0.21763016,112060.0,112050.0,0.04638357]
[1760142168583,0.61763016,112060.0,112050.0,0.04638357]
[1760142168798,1.06753006,112060.0,112050.0,0.02248262]
[1760142169396,0.66753006,112060.0,112050.0,0.02248262]
[1760142169591,0.1688254,112040.0,112030.0,0.02390095]
[1760142170096,0.21367253,112040.0,112030.0,0.02390095]
[1760142170395,1.06359183,112040.0,112030.0,0.02390095]
[1760142170588,0.21367253,112040.0,112030.0,0.02390095]
[1760142170789,0.21367253,112040.0,112030.0,0.47382815]
[1760142170987,0.21367253,112040.0,112030.0,0.02390095]
[1760142171491,1.06359193,112040.0,112030.0,0.02390095]
[1760142171888,0.25048817,112040.0,112030.0,0.02390095]
[1760142172094,1.01128817,112040.0,112030.0,0.02390095]
[1760142172498,1.01228817,112040.0,112030.0,0.02390095]
[1760142172700,1.10140757,112040.0,112030.0,0.02390095]
[1760142172993,1.10140757,112040.0,112020.0,0.02389937]
[1760142172994,0.0891274,112030.0,112020.0,0.02389937]
[1760142173186,0.0892131,112030.0,112020.0,0.05576953]
[1760142173388,0.13374818,112030.0,112020.0,0.88180546]
[1760142173694,0.13374818,112030.0,112020.0,0.89760302]
[1760142173890,0.89454818,112030.0,112020.0,0.0318793]
[1760142174094,0.53374818,112030.0,112020.0,0.0318793]
[1760142174398,0.98367558,112030.0,112020.0,0.0318793]
[1760142174894,0.07971,112020.0,112010.0,0.0318793]
[1760142175294,0.21325857,112020.0,112010.0,0.07954702]
[1760142175497,0.13354857,112020.0,112010.0,0.40846772]
[1760142175795,0.13354857,112020.0,112010.0,0.49761122]
[1760142175997,0.13354857,112020.0,112010.0,0.40846772]
[1760142176188,0.13354857,112020.0,112010.0,0.49761122]
[1760142176391,0.13354857,112020.0,112010.0,0.89761122]
[1760142176592,0.13354857,112020.0,112010.0,0.8499435]
[1760142176987,0.13354857,112020.0,112010.0,0.4499435]
[1760142177392,0.13354857,112020.0,112010.0,0.91361895]
[1760142177596,0.13354857,112020.0,112010.0,0.51361895]
[1760142177900,0.09354857,112020.0,112010.0,0.51361895]
[1760142178101,0.5321784,112060.0,112010.0,0.51361895]
[1760142178102,0.0891205,112040.0,112010.0,0.82447545]
[1760142178291,0.1688305,112040.0,112030.0,0.03197438]
[1760142178597,0.70048866,112040.0,112030.0,0.03197438]
[1760142178998,0.61136816,112040.0,112030.0,0.03197438]
[1760142179198,0.70048786,112040.0,112030.0,0.03197438]
[1760142179596,1.10048786,112040.0,112030.0,0.03197438]
[1760142179796,1.10148786,112040.0,112030.0,0.03197438]
[1760142179992,0.0891277,112030.0,112020.0,0.03199721]
[1760142180300,0.13359924,112030.0,112020.0,0.04796157]
[1760142180491,0.07971,112020.0,112000.0,0.06367545]
[1760142180698,0.1688615,112000.0,111990.0,0.06367545]
[1760142180892,0.07971,112000.0,111990.0,0.06367545]
[1760142181097,0.2035068,112000.0,111990.0,0.51363485]
[1760142181299,0.2035068,112000.0,111990.0,0.8499594]
[1760142181796,0.2035068,112000.0,111990.0,0.02238304]
[1760142182303,0.2035068,112000.0,111990.0,0.4]
[1760142182493,0.13371138,112000.0,111990.0,0.8499594]
[1760142182691,0.00011214,112000.0,111990.0,0.89797179]
[1760142182890,0.13432593,112000.0,111990.0,0.89797179]
[1760142183099,0.11723801,112040.0,111990.0,0.4499594]
[1760142183301,0.3608,112030.0,112000.0,0.4499505]
[1760142183497,0.25066229,112040.0,112010.0,0.4499415]
[1760142183701,0.22255768,112030.0,112010.0,0.3608]
[1760142183891,0.07971,112020.0,112010.0,0.3608]
[1760142184091,0.14955713,112020.0,112010.0,0.3608]
[1760142184296,0.28304978,112020.0,112010.0,0.3608]
[1760142184499,0.13349265,112020.0,112010.0,0.8499436]
[1760142184704,0.48078516,112080.0,112030.0,0.0891237]
[1760142185003,0.1343109,112060.0,112050.0,0.3608]
[1760142185192,0.0086218,112070.0,112050.0,0.3608]
[1760142185395,0.0086218,112070.0,112060.0,0.3608]
[1760142185396,0.07176856,112070.0,112060.0,0.3608]
[1760142185703,0.13458921,112070.0,112060.0,0.3608]
[1760142185898,0.07971,112060.0,112040.0,0.3608]
[1760142186199,0.30340391,112060.0,112030.0,0.3608]
[1760142186499,0.39340361,112060.0,112030.0,0.4499274]
[1760142186706,0.38400921,112060.0,112040.0,0.3608]
[1760142186901,0.21389773,112060.0,112040.0,0.54561999]
[1760142187103,0.8499174,112050.0,112020.0,0.3608]
[1760142187306,0.4499174,112050.0,112020.0,0.45650079]
[1760142187498,9.38e-05,112040.0,112030.0,0.4499278]
[1760142187699,0.09708378,112070.0,112040.0,0.18482059]
[1760142188003,0.2001531,112070.0,112060.0,0.3608]
[1760142188199,0.87255355,112150.0,112100.0,0.1685968]
[1760142188502,0.87255355,112150.0,112110.0,0.3608]
[1760142188503,0.09402008,112120.0,112110.0,0.3608]
[1760142188698,0.09402008,112120.0,112100.0,0.5294018]
[1760142188899,0.44005,112120.0,112080.0,0.5294153]
[1760142189105,0.21327008,112120.0,112090.0,0.3608]
[1760142189297,0.66312748,112120.0,112080.0,0.5294153]
[1760142189498,0.3608,112110.0,112080.0,0.3608]
[1760142189702,0.13602008,112120.0,112100.0,0.4498697]
[1760142190009,0.36086228,112170.0,112120.0,0.07953]
[1760142190207,0.3608,112170.0,112130.0,0.4498478]
[1760142190406,0.13392392,112160.0,112150.0,0.4498324]
[1760142190703,0.1339862,112160.0,112140.0,0.3608]
[1760142190908,0.22308044,112160.0,112140.0,0.3608]
[1760142191104,0.49479266,112160.0,112140.0,0.44033]
[1760142191298,6.228e-05,112180.0,112150.0,0.3608]
[1760142191504,6.228e-05,112150.0,112140.0,0.44033]
[1760142191805,0.58419328,112150.0,112130.0,0.3608]
[1760142192104,0.7608,112140.0,112110.0,0.3608]
[1760142192305,0.0890568,112120.0,112100.0,0.07953]
[1760142192507,0.44995901,112110.0,112080.0,0.44042392]
[1760142193013,0.08908,112090.0,112080.0,9.392e-05]
[1760142193207,0.449874,112100.0,112080.0,9.392e-05]
[1760142193403,0.2231607,112090.0,112080.0,9.392e-05]
[1760142193604,0.08908,112090.0,112080.0,9.392e-05]
[1760142193805,0.48908,112090.0,112080.0,9.392e-05]
[1760142194103,0.1340807,112090.0,112080.0,0.36089392]
[1760142194304,0.1340807,112090.0,112080.0,0.76089392]
[1760142194509,0.1340807,112090.0,112080.0,0.92951192]
[1760142194699,0.1340807,112090.0,112080.0,0.52951192]
[1760142194904,0.1340807,112090.0,112080.0,0.92951192]
[1760142195303,0.1340807,112090.0,112080.0,0.44042392]
[1760142195705,0.1340807,112090.0,112080.0,0.36089392]
[1760142196611,0.6231607,112090.0,112080.0,9.392e-05]
[1760142196909,0.5340807,112090.0,112080.0,9.392e-05]
[1760142197206,0.1340807,112090.0,112080.0,0.02352774]
[1760142197412,0.1340807,112090.0,112080.0,0.38432774]
[1760142198110,0.1340807,112090.0,112080.0,0.74512774]
[1760142198309,0.1340807,112090.0,112080.0,0.38432774]
[1760142198604,0.1340807,112090.0,112080.0,0.74512774]
[1760142198906,8.951e-05,112110.0,112100.0,0.07953]
[1760142199211,0.13347628,112110.0,112100.0,0.3608]
[1760142199414,0.13347628,112110.0,112100.0,0.8637448]
[1760142199607,0.85534402,112170.0,112100.0,0.8637448]
[1760142199808,0.49454402,112170.0,112140.0,0.3608]
[1760142200010,0.13362634,112150.0,112130.0,0.3608]
[1760142200209,0.96624551,112170.0,112130.0,0.3608]
[1760142200409,0.83261917,112170.0,112140.0,0.3608]
[1760142200712,0.49464762,112150.0,112100.0,0.3608]
[1760142200906,0.3608,112150.0,112110.0,0.3608]
[1760142201105,0.13384762,112150.0,112110.0,0.3608]
[1760142201412,0.49464762,112150.0,112110.0,0.3608]
[1760142201612,0.00011465,112140.0,112110.0,0.3608]
[1760142201810,0.3608,112160.0,112110.0,0.47683773]
[1760142202014,0.13289391,112140.0,112110.0,0.3608]
[1760142202312,0.3608,112130.0,112080.0,0.36089392]
[1760142202506,0.49384923,112140.0,112100.0,0.3608]
[1760142202715,0.13311999,112130.0,112100.0,0.3608]
[1760142203013,7.076e-05,112130.0,112110.0,0.3608]
[1760142203308,0.53311999,112130.0,112100.0,0.3608]
[1760142203507,0.13311999,112130.0,112110.0,0.3608]
[1760142203708,0.17391999,112150.0,112110.0,0.47683773]
[1760142203910,0.17391999,112150.0,112120.0,0.3608]
[1760142204114,0.49453743,112150.0,112110.0,0.47683773]
[1760142204416,0.3608,112130.0,112090.0,0.3608]
[1760142204709,0.13292386,112130.0,112120.0,0.3608]
[1760142205116,0.13301877,112130.0,112120.0,0.3608]
[1760142205413,0.53301877,112130.0,112100.0,0.3608]
[1760142205618,0.11301877,112130.0,112110.0,0.3608]
[1760142205915,0.11301877,112130.0,112120.0,0.47683773]
[1760142206112,0.10301877,112130.0,112120.0,0.47683773]
[1760142206315,0.10301877,112130.0,112110.0,0.3608]
[1760142206621,0.50301877,112130.0,112110.0,0.3608]
[1760142206818,0.50301877,112130.0,112120.0,0.3608]
[1760142206819,0.10301877,112130.0,112120.0,0.3608]
[1760142207116,0.10301877,112130.0,112100.0,0.3608]
[1760142207117,0.50301877,112130.0,112100.0,0.3608]
[1760142207313,0.05301877,112130.0,112120.0,0.7216]
[1760142207514,0.05301877,112130.0,112120.0,0.74635448]
[1760142207716,0.05301877,112130.0,112120.0,1.31716773]
[1760142207920,0.05301877,112130.0,112120.0,1.3419219]
[1760142208113,0.59961699,112200.0,112130.0,0.3608]
[1760142208421,0.59961699,112200.0,112180.0,0.3608]
[1760142208422,0.73371366,112200.0,112180.0,0.3608]
[1760142208614,0.62890675,112200.0,112190.0,0.3608]
[1760142208917,0.62890675,112200.0,112140.0,0.07953]
[1760142209113,0.32898687,112200.0,112170.0,0.3608]
[1760142209308,0.32898687,112200.0,112180.0,0.3608]
[1760142209515,0.32898687,112200.0,112190.0,0.3608]
[1760142209817,0.4,112190.0,112180.0,0.3608]
[1760142210017,0.2,112190.0,112180.0,0.3608]
[1760142210220,0.33387082,112190.0,112180.0,0.3608]
[1760142210517,0.33387082,112190.0,112150.0,0.28237647]
[1760142210723,0.13387082,112190.0,112150.0,0.28237647]
[1760142211021,0.13387082,112190.0,112170.0,0.3608]
[1760142211416,0.13387082,112190.0,112180.0,0.3608]
[1760142211617,0.53387082,112190.0,112180.0,0.3608]
[1760142211917,0.3608,112230.0,112180.0,0.67683773]
[1760142212116,0.78351905,112240.0,112220.0,0.3608]
[1760142212315,0.13382749,112230.0,112220.0,0.3608]
[1760142212728,0.4,112230.0,112220.0,0.3608]
[1760142212924,0.53382749,112230.0,112220.0,0.3608]
[1760142213221,0.53382749,112230.0,112220.0,0.3638]
[1760142213616,0.13382749,112230.0,112220.0,0.3638]
[1760142214018,0.57929513,112230.0,112220.0,0.3638]
[1760142214214,0.17929513,112230.0,112220.0,0.76236773]
[1760142214419,0.69234342,112330.0,112260.0,0.3608]
[1760142214621,0.04999999,112310.0,112290.0,0.3608]
[1760142214812,0.15938382,112310.0,112290.0,0.3608]
[1760142215122,0.04999999,112310.0,112280.0,0.3608]
[1760142215417,0.4,112300.0,112270.0,0.17907907]
[1760142215622,0.4,112300.0,112250.0,0.333094]
[1760142215623,0.04999999,112280.0,112250.0,0.333094]
[1760142215820,0.3608,112270.0,112250.0,0.333094]
[1760142216021,0.54358446,112280.0,112250.0,0.333094]
[1760142216219,0.13278447,112270.0,112250.0,0.333094]
[1760142216520,0.18354425,112280.0,112250.0,0.324234]
[1760142216719,0.53354426,112270.0,112250.0,0.300754]
[1760142216920,0.53354426,112270.0,112250.0,0.267544]
[1760142217121,0.00011333,112260.0,112250.0,0.267544]
[1760142217320,0.3608,112290.0,112250.0,0.632344]
[1760142217321,0.11365759,112270.0,112250.0,0.632344]
[1760142217521,0.4,112280.0,112260.0,0.3608]
[1760142217713,0.4,112280.0,112260.0,0.25542003]
[1760142217714,0.5343357,112280.0,112260.0,0.25542003]
[1760142217920,0.1343357,112270.0,112250.0,0.22700877]
[1760142218230,0.4951357,112280.0,112260.0,0.3608]
[1760142218423,0.1343357,112270.0,112260.0,0.4975426]
[1760142218617,0.52641762,112310.0,112260.0,0.8583426]
[1760142218922,0.13445479,112280.0,112270.0,0.3608]
[1760142219114,0.3608,112300.0,112270.0,0.3608]
[1760142219425,0.13445479,112280.0,112270.0,0.35629523]
[1760142219623,0.4,112290.0,112270.0,0.35629523]
[1760142219924,0.5330539,112280.0,112270.0,0.32530523]
[1760142220124,0.4,112280.0,112270.0,0.31982523]
[1760142220324,0.53415117,112280.0,112270.0,0.27759523]
[1760142220528,0.13915117,112280.0,112270.0,0.27759523]
[1760142220723,0.13924565,112280.0,112270.0,0.27759523]
[1760142220922,0.00509448,112280.0,112270.0,0.27759523]
[1760142221120,0.78351905,112320.0,112270.0,0.27759523]
[1760142221322,0.13415117,112280.0,112270.0,0.41433783]
[1760142221517,0.54538251,112310.0,112280.0,0.1367426]
[1760142221724,0.78351905,112350.0,112300.0,0.3608]
[1760142221925,0.3608,112350.0,112320.0,0.3608]
[1760142222129,6.755e-05,112340.0,112320.0,0.3608]
[1760142222430,6.496e-05,112330.0,112310.0,0.3608]
[1760142222623,6.496e-05,112330.0,112310.0,0.35642001]
[1760142222825,7.932e-05,112320.0,112310.0,0.3608]
[1760142223026,0.07236349,112320.0,112310.0,0.7216]
[1760142223228,0.13447755,112320.0,112310.0,0.8583426]
[1760142223726,0.17921787,112320.0,112310.0,1.2583426]
[1760142223927,0.17921787,112320.0,112310.0,0.8583426]
[1760142224124,0.17921787,112320.0,112310.0,0.81180805]
[1760142224326,0.17921787,112320.0,112310.0,0.4975426]
[1760142224525,0.57921787,112320.0,112300.0,0.3608]
[1760142224925,0.17921787,112320.0,112300.0,0.3608]
[1760142225124,0.17921787,112320.0,112310.0,0.3608]
[1760142225327,0.17921787,112320.0,112310.0,0.4975426]
[1760142225528,0.17921787,112320.0,112310.0,0.8975426]
[1760142225727,0.24921973,112320.0,112310.0,0.8975426]
[1760142226127,0.25021973,112320.0,112310.0,0.8975426]
[1760142226531,0.25021973,112320.0,112310.0,0.4975426]
[1760142226827,0.24921973,112320.0,112310.0,0.4975426]
[1760142227136,0.25021973,112320.0,112310.0,0.4975426]
[1760142227530,0.65021973,112320.0,112310.0,0.4975426]
[1760142227736,0.24921973,112320.0,112310.0,0.4975426]
[1760142227934,0.25021973,112320.0,112310.0,0.4975426]
[1760142228133,0.25021973,112320.0,112310.0,0.49209723]
[1760142228336,0.0449,112310.0,112250.0,0.3608]
[1760142228635,0.3608,112290.0,112260.0,0.13348085]
[1760142228931,0.78351905,112280.0,112250.0,0.13348085]
[1760142229132,0.42271905,112280.0,112260.0,0.13348085]
[1760142229326,0.4,112270.0,112230.0,0.3608]
[1760142229530,0.91682841,112280.0,112230.0,0.3608]
[1760142229722,0.13346557,112270.0,112240.0,0.3608]
[1760142229922,0.91698462,112280.0,112250.0,0.11959698]
[1760142230133,0.91698462,112280.0,112230.0,0.3608]
[1760142230326,0.13346557,112270.0,112230.0,0.3608]
[1760142230530,0.3618,112270.0,112240.0,0.11959698]
[1760142230731,7.809e-05,112260.0,112240.0,0.11959698]
[1760142231034,0.40579594,112250.0,112210.0,0.3298152]
[1760142231235,0.42271905,112230.0,112220.0,0.11959698]
[1760142231429,0.42271905,112230.0,112220.0,0.7216]
[1760142231636,0.55672859,112230.0,112220.0,1.31962698]
[1760142232337,0.13400954,112230.0,112220.0,1.20003]
[1760142232734,0.13400954,112230.0,112220.0,0.7216]
[1760142233038,0.13400954,112230.0,112220.0,1.1216]
[1760142233735,0.13400954,112230.0,112220.0,1.22420874]
[1760142233931,0.13500954,112230.0,112220.0,1.22420874]
[1760142234130,0.13500954,112230.0,112220.0,1.20003]
[1760142234330,0.13500954,112230.0,112220.0,1.22422305]
[1760142235426,0.13500954,112230.0,112220.0,1.20003]
[1760142237230,0.13400954,112230.0,112220.0,1.20003]
[1760142237536,0.13500954,112230.0,112220.0,1.20003]
[1760142237738,0.13500954,112230.0,112220.0,1.2238177]
[1760142239135,0.13500954,112230.0,112220.0,0.8238177]
[1760142239535,0.13500954,112230.0,112220.0,1.2238177]
[1760142239925,0.13400954,112230.0,112220.0,1.2238177]
[1760142240130,0.13500954,112230.0,112220.0,1.2238177]
[1760142240525,0.53500954,112230.0,112220.0,0.7453877]
[1760142240734,0.53500954,112230.0,112190.0,0.38456669]
[1760142241035,0.42271905,112210.0,112190.0,0.38454245]
[1760142241237,0.78351905,112210.0,112190.0,0.31081598]
[1760142241433,0.13369773,112210.0,112190.0,0.31081598]
[1760142241633,0.17817026,112210.0,112190.0,0.31081598]
[1760142242332,7.054e-05,112200.0,112190.0,0.31081598]
[1760142242631,0.07219003,112200.0,112190.0,0.31081598]
[1760142242831,0.13325339,112200.0,112190.0,0.38443306]
[1760142243336,0.66830397,112200.0,112190.0,0.38443306]
[1760142243526,0.26830397,112200.0,112190.0,0.38443306]
[1760142243733,0.13325339,112200.0,112190.0,0.40809036]
[1760142244440,0.20525546,112200.0,112190.0,0.40809036]
[1760142245143,0.20425546,112200.0,112190.0,0.83989271]
[1760142245342,1.5412413,112280.0,112200.0,0.07843]
[1760142245640,0.3608,112270.0,112210.0,0.02387675]
[1760142245843,0.43017859,112270.0,112210.0,0.38443306]
[1760142246037,0.3608,112250.0,112210.0,0.38443306]
[1760142246236,0.40579092,112250.0,112210.0,0.38443306]
[1760142246437,6.451e-05,112240.0,112210.0,0.37343677]
[1760142246642,0.42278356,112240.0,112210.0,0.37343677]
[1760142246848,0.53395346,112240.0,112210.0,0.37343677]
[1760142247036,0.89475346,112240.0,112210.0,0.37343677]
[1760142247337,0.7608,112230.0,112190.0,0.41651241]
[1760142247534,0.001,112200.0,112190.0,0.38467675]
[1760142247742,0.001,112200.0,112190.0,0.7216]
[1760142247944,0.1339591,112200.0,112190.0,0.38473004]
[1760142248141,0.1339591,112200.0,112190.0,0.74553004]
[1760142248341,0.1339591,112200.0,112190.0,0.7216]
[1760142248738,0.1329591,112200.0,112190.0,0.7216]
[1760142248945,0.1339591,112200.0,112190.0,0.7216]
[1760142250847,0.1349591,112200.0,112190.0,0.7216]
[1760142251544,0.1339591,112200.0,112190.0,0.7216]
[1760142251744,0.1349591,112200.0,112190.0,0.7216]
[1760142252140,0.8957591,112200.0,112160.0,0.3847317]
[1760142252339,0.3608,112180.0,112160.0,0.23062697]
[1760142252540,8.246e-05,112170.0,112160.0,0.23062697]
[1760142252936,0.53429172,112170.0,112160.0,0.23062697]
[1760142253140,0.89509172,112170.0,112140.0,0.02401064]
[1760142253442,0.13429172,112170.0,112150.0,0.3608]
[1760142253747,0.13429172,112170.0,112160.0,0.3608]
[1760142253944,0.1785657,112170.0,112160.0,0.3608]
[1760142254243,0.1785657,112170.0,112160.0,0.84081]
[1760142254547,0.13429172,112170.0,112160.0,0.86470278]
[1760142254735,0.13529172,112170.0,112160.0,0.86470278]
[1760142254940,0.13529172,112170.0,112160.0,0.46470278]
[1760142255241,0.13629172,112170.0,112160.0,0.46470278]
[1760142255441,0.13529172,112170.0,112160.0,0.86470278]
[1760142255640,0.13629172,112170.0,112160.0,0.46470278]
[1760142255843,0.13529172,112170.0,112160.0,0.46470278]
[1760142256148,0.13429172,112170.0,112160.0,0.46470278]
[1760142256648,0.20410253,112170.0,112160.0,0.46470278]
[1760142256842,0.60410253,112170.0,112160.0,0.3608]
[1760142257442,0.20410253,112170.0,112160.0,0.3608]
[1760142257943,0.20410253,112170.0,112140.0,0.38477172]
[1760142258144,0.20410253,112170.0,112150.0,0.3608]
[1760142258447,0.20610253,112170.0,112150.0,0.38469278]
[1760142258647,0.20610253,112170.0,112140.0,0.08008894]
[1760142259149,0.20510253,112170.0,112140.0,0.44088894]
[1760142260249,0.20510253,112170.0,112140.0,0.36087894]
[1760142260449,0.96590253,112170.0,112140.0,0.36087894]
[1760142260650,0.56590253,112170.0,112140.0,0.36087894]
[1760142260847,0.56690253,112170.0,112150.0,0.3608]
[1760142261043,0.20510253,112170.0,112160.0,0.3608]
[1760142261648,0.20510253,112170.0,112140.0,0.44088894]
[1760142261850,0.20410253,112170.0,112140.0,0.44088894]
[1760142262051,0.20610253,112170.0,112140.0,0.44088894]
[1760142262448,0.20510253,112170.0,112140.0,0.44088894]
[1760142262650,0.20610253,112170.0,112140.0,0.44088894]
[1760142263452,0.20610253,112170.0,112150.0,0.3608]
[1760142264651,0.20510253,112170.0,112150.0,0.3608]
[1760142264946,0.60610253,112170.0,112140.0,0.36087894]
[1760142265152,0.20610253,112170.0,112140.0,0.36087894]
[1760142266853,0.56690253,112170.0,112140.0,0.36087894]
[1760142267256,0.56590253,112170.0,112140.0,0.36087894]
[1760142267554,0.56690253,112170.0,112140.0,0.36087894]
[1760142268150,0.20510253,112170.0,112140.0,0.36087894]
[1760142268352,0.20610253,112170.0,112140.0,0.36087894]
[1760142268952,0.56590253,112170.0,112140.0,0.36087894]
[1760142269154,0.56690253,112170.0,112140.0,0.36087894]
[1760142269347,0.96690253,112170.0,112120.0,0.3608]
[1760142269555,0.7216,112130.0,112100.0,0.44081]
[1760142269751,0.3608,112120.0,112100.0,0.3608]
[1760142270055,1.02596099,112120.0,112090.0,0.38467723]
[1760142270352,1.02596099,112120.0,112070.0,0.3608]
[1760142270353,0.3608,112110.0,112070.0,0.3608]
[1760142270749,0.49439247,112110.0,112070.0,0.3608]
[1760142270949,0.3608,112100.0,112070.0,0.3608]
[1760142271153,0.3608,112090.0,112070.0,0.3608]
[1760142271356,0.49448264,112100.0,112070.0,0.3608]
[1760142271547,0.49439247,112090.0,112070.0,0.3608]
[1760142271744,0.3608,112090.0,112070.0,0.3608]
[1760142272154,0.49609536,112090.0,112070.0,0.3608]
[1760142272655,0.13529536,112090.0,112070.0,0.3608]
[1760142273058,0.17947645,112090.0,112070.0,0.3608]
[1760142273755,0.00109017,112100.0,112080.0,0.84081]
[1760142273956,0.00109017,112100.0,112090.0,0.3608]
[1760142274148,0.43061081,112170.0,112100.0,0.08001]
[1760142274353,0.3608,112150.0,112120.0,0.44081]
[1760142274860,0.1340926,112150.0,112130.0,0.3608]
[1760142275159,9.834e-05,112140.0,112130.0,0.3608]
[1760142275561,0.13419094,112140.0,112130.0,0.3608]
[1760142276062,0.13419094,112140.0,112130.0,0.7608]
[1760142276264,0.13419094,112140.0,112130.0,0.3608]
[1760142277161,0.13719094,112140.0,112120.0,0.08001]
[1760142277357,0.13719094,112140.0,112130.0,0.3608]
[1760142277663,0.13719094,112140.0,112110.0,0.3608]
[1760142278259,0.13619094,112140.0,112130.0,0.3608]
[1760142278559,0.13919094,112140.0,112130.0,0.3608]
[1760142279164,0.13919094,112140.0,112130.0,0.7608]
[1760142279362,0.13919094,112140.0,112130.0,0.3608]
[1760142279856,0.13719094,112140.0,112130.0,0.3608]
[1760142280062,0.13719094,112140.0,112130.0,0.7608]
[1760142280263,0.13419094,112140.0,112130.0,0.7608]
[1760142280769,0.13419094,112140.0,112130.0,0.3608]
[1760142281171,0.13519094,112140.0,112130.0,0.3608]
[1760142281364,0.13519094,112140.0,112120.0,0.43804]
[1760142281966,0.13419094,112140.0,112130.0,0.3608]
[1760142282269,0.13419094,112140.0,112130.0,0.7608]
[1760142282667,0.13419094,112140.0,112130.0,0.3608]
[1760142282870,0.06981081,112170.0,112160.0,0.07724]
[1760142283064,0.07675966,112200.0,112160.0,0.43804]
[1760142283265,0.03074898,112200.0,112180.0,0.3608]
[1760142283572,0.13386371,112190.0,112160.0,0.43804]
[1760142283760,0.16461269,112200.0,112180.0,0.3608]
[1760142283966,0.03074898,112210.0,112190.0,0.3608]
[1760142284169,0.07675966,112220.0,112200.0,0.43804]
[1760142284371,0.13448683,112210.0,112190.0,0.3608]
[1760142284573,0.17863831,112220.0,112200.0,0.3608]
[1760142284872,0.13300585,112210.0,112190.0,0.3608]
[1760142285073,0.49525155,112210.0,112170.0,0.3608]
[1760142285370,0.4279,112200.0,112180.0,0.3608]
[1760142285766,0.06874,112180.0,112150.0,0.39263938]
[1760142285965,0.06874,112180.0,112150.0,0.3608]
[1760142286163,0.20253711,112180.0,112160.0,0.3608]
[1760142286373,0.20253711,112180.0,112150.0,0.3608]
[1760142286664,0.56333711,112180.0,112150.0,0.3608]
[1760142286869,0.00011215,112170.0,112150.0,0.3608]
[1760142287270,0.13462184,112170.0,112150.0,0.3608]
[1760142289270,0.13462184,112170.0,112140.0,0.46987938]
[1760142289772,0.13462184,112170.0,112160.0,0.3608]
[1760142290067,0.13462184,112170.0,112160.0,0.83695]
[1760142290874,0.0703401,112210.0,112160.0,0.83695]
[1760142291072,0.47205148,112220.0,112190.0,0.3608]
[1760142291375,0.3608,112200.0,112180.0,0.3608]
[1760142291576,0.42954,112200.0,112160.0,0.43695]
[1760142291777,0.56363469,112200.0,112160.0,0.43695]
[1760142292169,0.36091526,112190.0,112160.0,0.43695]
[1760142292370,0.36091526,112190.0,112170.0,0.3608]
[1760142292670,0.49500995,112190.0,112160.0,0.43795]
[1760142292870,0.49500995,112190.0,112160.0,0.3618]
[1760142293072,0.49500995,112190.0,112170.0,0.3608]
[1760142293571,0.13420995,112190.0,112180.0,0.3608]
[1760142293771,0.13420995,112190.0,112180.0,0.83695]
[1760142294979,0.13420995,112190.0,112180.0,0.43695]
[1760142295170,0.13420995,112190.0,112180.0,0.3608]
[1760142295875,0.13420995,112190.0,112160.0,0.43695]
[1760142296180,0.49500995,112190.0,112180.0,0.001]
[1760142296576,0.13420995,112190.0,112180.0,0.4]
[1760142296977,0.13420995,112190.0,112180.0,0.7608]
[1760142297178,0.13420995,112190.0,112180.0,0.4]
[1760142297679,0.49500995,112190.0,112170.0,0.3608]
[1760142297872,0.13420995,112190.0,112180.0,0.3608]
[1760142298181,0.49500995,112190.0,112170.0,0.3608]
[1760142299473,0.4279,112180.0,112150.0,0.3608]
[1760142299671,0.4279,112180.0,112130.0,0.3608]
[1760142299672,0.0890237,112160.0,112130.0,0.3608]
[1760142299873,0.0890237,112160.0,112140.0,0.0890395]
[1760142300078,0.13344838,112160.0,112150.0,0.0890313]
[1760142300476,0.08463038,112160.0,112150.0,0.8498313]
[1760142300676,0.08463038,112160.0,112150.0,0.8508313]
[1760142300873,0.36091526,112190.0,112170.0,0.0890159]
[1760142301073,0.3608,112180.0,112160.0,0.07615]
[1760142301282,0.494064,112190.0,112180.0,0.1651614]
[1760142301472,0.00011526,112190.0,112180.0,0.1651614]
[1760142301670,0.36091526,112190.0,112170.0,0.0890126]
[1760142301878,0.49424732,112190.0,112170.0,0.0890126]
[1760142302073,0.4498078,112180.0,112160.0,0.07615]
[1760142302381,0.13333206,112180.0,112170.0,0.4498147]
[1760142302777,0.13333206,112180.0,112170.0,0.3608]
[1760142302984,0.89413206,112180.0,112150.0,0.0890283]
[1760142303280,0.3608,112170.0,112160.0,0.0890229]
[1760142303486,0.49413206,112180.0,112160.0,0.0890229]
[1760142303683,0.13401913,112170.0,112160.0,0.9259729]
[1760142303983,0.13429151,112190.0,112180.0,0.1651581]
[1760142304184,0.13429151,112190.0,112180.0,0.5259581]
[1760142304386,0.00011526,112190.0,112180.0,0.5259581]